fUSD/lending_fUSD_20250728
["ID","MTS","AMOUNT","RATE_DAILY","PERIOD"]
[375494142,1753661448626,-500.0,0.00021917,2]
[375494145,1753661448635,-500.0,0.00021917,2]
[375494147,1753661448645,-599.04,0.00021917,2]
[375494148,1753661448654,-400.0,0.00021917,2]
[375494151,1753661448664,-400.0,0.00021917,2]
[375494153,1753661448673,-400.0,0.00021917,2]
[375494155,1753661448683,-400.0,0.00021917,2]
[375494157,1753661448692,-400.0,0.00021917,2]
[375494158,1753661448701,-400.0,0.00021917,2]
[375494161,1753661448711,-541.33,0.00021917,2]
[375494163,1753661448720,-400.0,0.00021917,2]
[375494165,1753661448729,-843.03,0.00021917,2]
[375494167,1753661448738,-400.0,0.00021917,2]
[375494169,1753661448747,-400.0,0.00021917,2]
[375494171,1753661448756,-1370.25,0.00021917,2]
[375494172,1753661448764,-4260.28,0.00021917,2]
[375494174,1753661448773,-721.82,0.00021917,2]
[375494176,1753661448783,-3753.2,0.00021917,2]
[375494178,1753661448792,-447.13,0.00021917,2]
[375494180,1753661448801,-2735.57,0.00021917,2]
[375494182,1753661448812,-400.0,0.00021917,2]
[375494184,1753661448821,-2546.27,0.00021917,2]
[375494187,1753661448831,-400.0,0.00021917,2]
[375494188,1753661448840,-400.0,0.00021917,2]
[375494191,1753661448849,-400.0,0.00021917,2]
[375494192,1753661448860,-400.0,0.00021917,2]
[375494194,1753661448869,-400.0,0.00021917,2]
[375494197,1753661448879,-1009.59,0.00021917,2]
[375494199,1753661448888,-400.0,0.00021917,2]
[375494200,1753661448898,-400.0,0.00021917,2]
[375494203,1753661448907,-400.0,0.00021917,2]
[375494205,1753661448917,-400.0,0.00021917,2]
[375494206,1753661448926,-400.0,0.00021917,2]
[375494209,1753661448936,-400.0,0.00021917,2]
[375494211,1753661448945,-400.0,0.00021917,2]
[375494213,1753661448955,-1758.24,0.00021917,2]
[375494215,1753661448964,-400.0,0.00021917,2]
[375494217,1753661448973,-1120.75,0.00021917,2]
[375494219,1753661448983,-1416.91,0.00021917,2]
[375494221,1753661448992,-400.0,0.00021917,2]
[375494223,1753661449002,-400.0,0.00021917,2]
[375494224,1753661449011,-2291.05,0.00021917,2]
[375494226,1753661449020,-436.27,0.00021917,2]
[375494228,1753661449029,-538.74,0.00021917,2]
[375494230,1753661449038,-1445.79,0.00021917,2]
[375494232,1753661449047,-462.57881853,0.00021917,2]
[375494234,1753661449056,-400.0,0.00021917,2]
[375494236,1753661449066,-400.0,0.00021917,2]
[375494238,1753661449075,-400.0,0.00021917,2]
[375494240,1753661449084,-400.0,0.00021917,2]
[375494242,1753661449095,-647.95,0.00021917,2]
[375494245,1753661449105,-400.0,0.00021917,2]
[375494247,1753661449114,-590.93,0.00021917,2]
[375494249,1753661449123,-1170.61,0.00021917,2]
[375494251,1753661449133,-400.0,0.00021917,2]
[375494253,1753661449142,-400.0,0.00021917,2]
[375494255,1753661449151,-1798.86,0.00021917,2]
[375494257,1753661449161,-927.81,0.00021917,2]
[375494259,1753661449170,-400.0,0.00021917,2]
[375494261,1753661449180,-400.0,0.00021917,2]
[375494263,1753661449189,-2307.6,0.00021917,2]
[375494265,1753661449198,-512.02,0.00021917,2]
[375494267,1753661449207,-791.53,0.00021917,2]
[375494269,1753661449216,-400.0,0.00021917,2]
[375494271,1753661449226,-791.53,0.00021917,2]
[375494273,1753661449235,-791.53,0.00021917,2]
[375494275,1753661449244,-791.53,0.00021917,2]
[375494277,1753661449253,-791.53,0.00021917,2]
[375494279,1753661449262,-400.0,0.00021917,2]
[375494281,1753661449271,-791.53,0.00021917,2]
[375494283,1753661449281,-791.53,0.00021917,2]
[375494285,1753661449290,-400.0,0.00021917,2]
[375494287,1753661449299,-791.53,0.00021917,2]
[375494288,1753661449309,-791.53,0.00021917,2]
[375494291,1753661449319,-791.53,0.00021917,2]
[375494292,1753661449328,-791.53,0.00021917,2]
[375494294,1753661449338,-727.07,0.00021917,2]
[375494297,1753661449347,-791.53,0.00021917,2]
[375494299,1753661449357,-1258.67,0.00021917,2]
[375494301,1753661449368,-791.53,0.00021917,2]
[375494303,1753661449378,-791.53,0.00021917,2]
[375494305,1753661449388,-791.53,0.00021917,2]
[375494307,1753661449398,-1520.59,0.00021917,2]
[375494308,1753661449407,-791.53,0.00021917,2]
[375494310,1753661449417,-791.53,0.00021917,2]
[375494312,1753661449427,-791.53,0.00021917,2]
[375494314,1753661449436,-1599.75,0.00021917,2]
[375494316,1753661449446,-400.0,0.00021917,2]
[375494319,1753661449455,-400.0,0.00021917,2]
[375494320,1753661449465,-400.0,0.00021917,2]
[375494322,1753661449474,-400.0,0.00021917,2]
[375494325,1753661449484,-462.14116077,0.00021917,2]
[375494326,1753661449493,-400.0,0.00021917,2]
[375494328,1753661449502,-400.0,0.00021917,2]
[375494331,1753661449512,-400.0,0.00021917,2]
[375494333,1753661449522,-400.0,0.00021917,2]
[375494334,1753661449534,-405.38,0.00021917,2]
[375494336,1753661449546,-400.0,0.00021917,2]
[375494338,1753661449556,-1348.7,0.00021917,2]
[375494340,1753661449566,-400.0,0.00021917,2]
[375494342,1753661449576,-400.0,0.00021917,2]
[375494345,1753661449586,-826.9,0.00021917,2]
[375494347,1753661449595,-400.0,0.00021917,2]
[375494349,1753661449604,-467.41926573,0.00021917,2]
[375494350,1753661449615,-505.86,0.00021917,2]
[375494351,1753661449624,-2360.13,0.00021917,2]
[375494352,1753661449633,-400.0,0.00021917,2]
[375494353,1753661449643,-930.84,0.00021917,2]
[375494354,1753661449652,-400.0,0.00021917,2]
[375494355,1753661449661,-400.0,0.00021917,2]
[375494356,1753661449671,-3345.64,0.00021917,2]
[375494357,1753661449680,-400.0,0.00021917,2]
[375494358,1753661449690,-674.26,0.00021917,2]
[375494359,1753661449699,-400.0,0.00021917,2]
[375494360,1753661449709,-964.68,0.00021917,2]
[375494361,1753661449718,-400.0,0.00021917,2]
[375494362,1753661449728,-400.0,0.00021917,2]
[375494363,1753661449738,-400.0,0.00021917,2]
[375494364,1753661449747,-400.0,0.00021917,2]
[375494365,1753661449757,-400.0,0.00021917,2]
[375494366,1753661449766,-2325.02,0.00021917,2]
[375494367,1753661449777,-495.32871009,0.00021917,2]
[375494368,1753661449786,-400.0,0.00021917,2]
[375494369,1753661449795,-2652.03,0.00021917,2]
[375494370,1753661449805,-400.0,0.00021917,2]
[375494371,1753661449815,-400.0,0.00021917,2]
[375494373,1753661449824,-400.0,0.00021917,2]
[375494374,1753661449834,-4207.59,0.00021917,2]
[375494376,1753661449843,-546.45980589,0.00021917,2]
[375494378,1753661449854,-400.0,0.00021917,2]
[375494379,1753661449864,-400.0,0.00021917,2]
[375494380,1753661449874,-1651.73,0.00021917,2]
[375494381,1753661449883,-400.0,0.00021917,2]
[375494382,1753661449893,-1734.14,0.00021917,2]
[375494383,1753661449903,-400.0,0.00021917,2]
[375494384,1753661449913,-430.43,0.00021917,2]
[375494385,1753661449922,-400.0,0.00021917,2]
[375494386,1753661449931,-400.0,0.00021917,2]
[375494387,1753661449940,-1475.22,0.00021917,2]
[375494388,1753661449950,-500.0,0.00021917,2]
[375494389,1753661449959,-500.0,0.00021917,2]
[375494390,1753661449969,-500.0,0.00021917,2]
[375494391,1753661449978,-18836.32,0.00021917,2]
[375494392,1753661449987,-400.0,0.00021917,2]
[375494393,1753661449997,-948.65,0.00021917,2]
[375494394,1753661450006,-500.0,0.00021917,2]
[375494395,1753661450016,-400.0,0.00021917,2]
[375494396,1753661450025,-500.0,0.00021917,2]
[375494397,1753661450034,-500.0,0.00021917,2]
[375494398,1753661450043,-500.0,0.00021917,2]
[375494400,1753661450052,-500.0,0.00021917,2]
[375494402,1753661450062,-486.43,0.00021917,2]
[375494404,1753661450071,-500.0,0.00021917,2]
[375494406,1753661450080,-500.0,0.00021917,2]
[375494408,1753661450088,-500.0,0.00021917,2]
[375494410,1753661450098,-500.0,0.00021917,2]
[375494412,1753661450107,-500.0,0.00021917,2]
[375494413,1753661450116,-500.0,0.00021917,2]
[375494415,1753661450125,-400.0,0.00021917,2]
[375494417,1753661450134,-400.0,0.00021917,2]
[375494419,1753661450143,-400.0,0.00021917,2]
[375494421,1753661450152,-1214.83,0.00021917,2]
[375494423,1753661450162,-400.0,0.00021917,2]
[375494425,1753661450171,-2681.47,0.00021917,2]
[375494427,1753661450179,-400.0,0.00021917,2]
[375494429,1753661450188,-1960.71,0.00021917,2]
[375494431,1753661450197,-400.0,0.00021917,2]
[375494433,1753661450206,-2129.67,0.00021917,2]
[375494435,1753661450215,-400.0,0.00021917,2]
[375494437,1753661450224,-400.0,0.00021917,2]
[375494439,1753661450233,-400.0,0.00021917,2]
[375494441,1753661450241,-4838.75,0.00021917,2]
[375494443,1753661450250,-778.56,0.00021917,2]
[375494445,1753661450259,-400.0,0.00021917,2]
[375494447,1753661450268,-1326.37,0.00021917,2]
[375494449,1753661450277,-400.0,0.00021917,2]
[375494451,1753661450287,-400.0,0.00021917,2]
[375494453,1753661450296,-400.0,0.00021917,2]
[375494455,1753661450306,-423.43126113,0.00021917,2]
[375494457,1753661450317,-508.35,0.00021917,2]
[375494458,1753661450326,-1209.52,0.00021917,2]
[375494460,1753661450335,-400.0,0.00021917,2]
[375494462,1753661450344,-400.0,0.00021917,2]
[375494464,1753661450354,-442.5,0.00021917,2]
[375494465,1753661450363,-400.0,0.00021917,2]
[375494466,1753661450373,-248.13344037,0.00021917,2]
[375494467,1753661450383,-400.0,0.00021917,2]
[375494468,1753661450392,-1969.75,0.00021917,2]
[375494469,1753661450401,-400.0,0.00021917,2]
[375494470,1753661450411,-470.89,0.00021917,2]
[375494471,1753661450420,-4128.97,0.00021917,2]
[375494472,1753661450430,-400.0,0.00021917,2]
[375494473,1753661450439,-588.36,0.00021917,2]
[375494474,1753661450449,-3956.93,0.00021917,2]
[375494475,1753661450459,-400.0,0.00021917,2]
[375494476,1753661450468,-2356.68,0.00021917,2]
[375494477,1753661450477,-400.0,0.00021917,2]
[375494478,1753661450487,-400.0,0.00021917,2]
[375494479,1753661450496,-1435.39,0.00021917,2]
[375494480,1753661450506,-1050.82,0.00021917,2]
[375494481,1753661450516,-1739.91,0.00021917,2]
[375494482,1753661450525,-400.0,0.00021917,2]
[375494483,1753661450540,-400.34464268,0.00021917,2]
[375494484,1753661450549,-400.0,0.00021917,2]
[375494485,1753661450559,-410.59,0.00021917,2]
[375494486,1753661450569,-400.0,0.00021917,2]
[375494487,1753661450580,-1020.02,0.00021917,2]
[375494488,1753661450589,-400.0,0.00021917,2]
[375494489,1753661450599,-400.0,0.00021917,2]
[375494490,1753661450610,-500.0,0.00021917,2]
[375494491,1753661450620,-1501.11,0.00021917,2]
[375494492,1753661450629,-605.91,0.00021917,2]
[375494493,1753661450638,-481.4,0.00021917,2]
[375494494,1753661450647,-1156.49,0.00021917,2]
[375494495,1753661450657,-400.0,0.00021917,2]
[375494496,1753661450666,-426.28,0.00021917,2]
[375494497,1753661450675,-401.13056353,0.00021917,2]
[375494498,1753661450684,-221.18297151,0.00021917,2]
[375494499,1753661450694,-400.0,0.00021917,2]
[375494500,1753661450703,-400.0,0.00021917,2]
[375494501,1753661450713,-400.0,0.00021917,2]
[375494502,1753661450722,-3317.25,0.00021917,2]
[375494503,1753661450731,-400.0,0.00021917,2]
[375494504,1753661450740,-746.92,0.00021917,2]
[375494505,1753661450750,-1613.86,0.00021917,2]
[375494506,1753661450759,-400.0,0.00021917,2]
[375494507,1753661450768,-400.0,0.00021917,2]
[375494508,1753661450778,-400.0,0.00021917,2]
[375494509,1753661450787,-484.29,0.00021917,2]
[375494510,1753661450796,-264.32853228,0.00021917,2]
[375494511,1753661450806,-400.0,0.00021917,2]
[375494512,1753661450815,-400.0,0.00021917,2]
[375494513,1753661450826,-1698.8,0.00021917,2]
[375494514,1753661450835,-713.36,0.00021917,2]
[375494515,1753661450844,-4003.84,0.00021917,2]
[375494516,1753661450853,-2182.57,0.00021917,2]
[375494517,1753661450863,-400.0,0.00021917,2]
[375494518,1753661450872,-766.14,0.00021917,2]
[375494519,1753661450882,-400.0,0.00021917,2]
[375494520,1753661450891,-400.0,0.00021917,2]
[375494521,1753661450901,-400.0,0.00021917,2]
[375494522,1753661450910,-400.0,0.00021917,2]
[375494523,1753661450920,-982.04,0.00021917,2]
[375494524,1753661450929,-1032.37,0.00021917,2]
[375494525,1753661450938,-400.0,0.00021917,2]
[375494526,1753661450947,-1160.97,0.00021917,2]
[375494527,1753661450956,-400.0,0.00021917,2]
[375494528,1753661450965,-400.0,0.00021917,2]
[375494529,1753661450974,-9081.6,0.00021917,2]
[375494530,1753661450983,-2032.95,0.00021917,2]
[375494531,1753661450992,-2494.71,0.00021917,2]
[375494532,1753661451001,-400.0,0.00021917,2]
[375494533,1753661451010,-400.0,0.00021917,2]
[375494534,1753661451019,-1754.72,0.00021917,2]
[375494535,1753661451029,-513.59,0.00021917,2]
[375494536,1753661451039,-400.0,0.00021917,2]
[375494537,1753661451048,-5403.25,0.00021917,2]
[375494538,1753661451058,-400.0,0.00021917,2]
[375494539,1753661451068,-400.0,0.00021917,2]
[375494540,1753661451078,-958.94,0.00021917,2]
[375494541,1753661451087,-400.0,0.00021917,2]
[375494542,1753661451096,-400.0,0.00021917,2]
[375494543,1753661451106,-400.0,0.00021917,2]
[375494544,1753661451115,-542.83,0.00021917,2]
[375494545,1753661451124,-1711.35,0.00021917,2]
[375494546,1753661451134,-482.86949709,0.00021917,2]
[375494547,1753661451143,-400.0,0.00021917,2]
[375494548,1753661451153,-400.0,0.00021917,2]
[375494549,1753661451163,-400.0,0.00021917,2]
[375494550,1753661451172,-400.0,0.00021917,2]
[375494551,1753661451182,-934.18,0.00021917,2]
[375494552,1753661451191,-1182.21,0.00021917,2]
[375494553,1753661451201,-283.02588895,0.00021917,2]
[375494554,1753661451210,-280.0,0.00021917,2]
[375494555,1753661451220,-1396.92,0.00021917,2]
[375494556,1753661451229,-669.41,0.00021917,2]
[375494557,1753661451239,-901.86,0.00021917,2]
[375494558,1753661451248,-400.0,0.00021917,2]
[375494559,1753661451257,-400.0,0.00021917,2]
[375494560,1753661451267,-400.0,0.00021917,2]
[375494561,1753661451277,-400.0,0.00021917,2]
[375494563,1753661451287,-400.0,0.00021917,2]
[375494565,1753661451296,-990.11,0.00021917,2]
[375494567,1753661451306,-400.0,0.00021917,2]
[375494568,1753661451317,-2568.71,0.00021917,2]
[375494569,1753661451327,-612.1,0.00021917,2]
[375494570,1753661451338,-400.0,0.00021917,2]
[375494571,1753661451348,-437.45,0.00021917,2]
[375494572,1753661451359,-1386.89,0.00021917,2]
[375494573,1753661451369,-400.0,0.00021917,2]
[375494574,1753661451379,-1743.92,0.00021917,2]
[375494575,1753661451389,-4774.68,0.00021917,2]
[375494576,1753661451400,-400.0,0.00021917,2]
[375494577,1753661451411,-1280.38,0.00021917,2]
[375494578,1753661451423,-1322.2,0.00021917,2]
[375494579,1753661451434,-621.25,0.00021917,2]
[375494580,1753661451445,-400.0,0.00021917,2]
[375494581,1753661451455,-400.0,0.00021917,2]
[375494582,1753661451466,-1534.88,0.00021917,2]
[375494583,1753661451476,-400.0,0.00021917,2]
[375494584,1753661451486,-400.0,0.00021917,2]
[375494585,1753661451497,-411.67,0.00021917,2]
[375494586,1753661451508,-1229.14,0.00021917,2]
[375494587,1753661451518,-400.0,0.00021917,2]
[375494588,1753661451528,-400.0,0.00021917,2]
[375494589,1753661451542,-400.0,0.00021917,2]
[375494590,1753661451553,-1772.22,0.00021917,2]
[375494591,1753661451564,-400.0,0.00021917,2]
[375494592,1753661451575,-1837.18,0.00021917,2]
[375494593,1753661451585,-926.59,0.00021917,2]
[375494594,1753661451595,-400.0,0.00021917,2]
[375494595,1753661451606,-400.0,0.00021917,2]
[375494596,1753661451617,-400.0,0.00021917,2]
[375494597,1753661451627,-1506.02,0.00021917,2]
[375494598,1753661451637,-1539.58,0.00021917,2]
[375494599,1753661451647,-400.0,0.00021917,2]
[375494600,1753661451657,-1258.18,0.00021917,2]
[375494601,1753661451667,-400.0,0.00021917,2]
[375494602,1753661451677,-6729.57,0.00021917,2]
[375494603,1753661451687,-400.0,0.00021917,2]
[375494604,1753661451697,-400.0,0.00021917,2]
[375494605,1753661451707,-400.0,0.00021917,2]
[375494606,1753661451717,-1100.83,0.00021917,2]
[375494607,1753661451728,-1237.42,0.00021917,2]
[375494608,1753661451737,-478.36,0.00021917,2]
[375494609,1753661451747,-2158.5,0.00021917,2]
[375494610,1753661451757,-483.41,0.00021917,2]
[375494611,1753661451766,-3196.66,0.00021917,2]
[375494612,1753661451776,-427.8,0.00021917,2]
[375494613,1753661451787,-995.73,0.00021917,2]
[375494614,1753661451796,-400.0,0.00021917,2]
[375494615,1753661451806,-1364.82,0.00021917,2]
[375494616,1753661451816,-400.0,0.00021917,2]
[375494617,1753661451826,-400.0,0.00021917,2]
[375494618,1753661451837,-400.0,0.00021917,2]
[375494619,1753661451847,-400.0,0.00021917,2]
[375494620,1753661451857,-685.38,0.00021917,2]
[375494621,1753661451867,-400.0,0.00021917,2]
[375494622,1753661451877,-400.0,0.00021917,2]
[375494623,1753661451886,-2744.47,0.00021917,2]
[375494624,1753661451896,-400.0,0.00021917,2]
[375494625,1753661451909,-400.0,0.00021917,2]
[375494626,1753661451919,-400.0,0.00021917,2]
[375494627,1753661451928,-2716.7,0.00021917,2]
[375494628,1753661451939,-400.0,0.00021917,2]
[375494629,1753661451948,-518.95,0.00021917,2]
[375494630,1753661451958,-400.0,0.00021917,2]
[375494631,1753661451968,-937.03,0.00021917,2]
[375494632,1753661451977,-1558.53,0.00021917,2]
[375494633,1753661451987,-400.0,0.00021917,2]
[375494634,1753661451997,-819.22,0.00021917,2]
[375494635,1753661452007,-635.42,0.00021917,2]
[375494636,1753661452016,-400.0,0.00021917,2]
[375494637,1753661452026,-400.0,0.00021917,2]
[375494638,1753661452035,-400.0,0.00021917,2]
[375494639,1753661452045,-2301.7,0.00021917,2]
[375494640,1753661452055,-3384.1,0.00021917,2]
[375494641,1753661452066,-400.0,0.00021917,2]
[375494642,1753661452076,-2357.58,0.00021917,2]
[375494643,1753661452086,-2488.76,0.00021917,2]
[375494644,1753661452095,-400.0,0.00021917,2]
[375494645,1753661452105,-400.0,0.00021917,2]
[375494646,1753661452114,-400.0,0.00021917,2]
[375494647,1753661452123,-400.0,0.00021917,2]
[375494648,1753661452133,-500.0,0.00021917,2]
[375494649,1753661452143,-1421.06,0.00021917,2]
[375494650,1753661452152,-266.6367664,0.00021917,2]
[375494651,1753661452162,-400.0,0.00021917,2]
[375494652,1753661452171,-400.0,0.00021917,2]
[375494653,1753661452181,-400.0,0.00021917,2]
[375494654,1753661452191,-790.46,0.00021917,2]
[375494655,1753661452200,-1172.01,0.00021917,2]
[375494656,1753661452210,-1793.25,0.00021917,2]
[375494657,1753661452219,-1307.0,0.00021917,2]
[375494658,1753661452229,-400.0,0.00021917,2]
[375494659,1753661452238,-487.02,0.00021917,2]
[375494660,1753661452248,-408.39,0.00021917,2]
[375494661,1753661452259,-400.0,0.00021917,2]
[375494662,1753661452268,-507.39,0.00021917,2]
[375494663,1753661452278,-1728.76,0.00021917,2]
[375494664,1753661452288,-1931.6,0.00021917,2]
[375494665,1753661452298,-401.40262442,0.00021917,2]
[375494666,1753661452307,-400.0,0.00021917,2]
[375494667,1753661452318,-400.0,0.00021917,2]
[375494668,1753661452328,-1652.28,0.00021917,2]
[375494669,1753661452338,-500.13737915,0.00021917,2]
[375494670,1753661452348,-4378.11,0.00021917,2]
[375494671,1753661452358,-400.0,0.00021917,2]
[375494672,1753661452368,-400.0,0.00021917,2]
[375494673,1753661452377,-1000.0,0.00021917,2]
[375494674,1753661452387,-400.0,0.00021917,2]
[375494675,1753661452397,-1407.23,0.00021917,2]
[375494676,1753661452407,-3371.35,0.00021917,2]
[375494677,1753661452417,-400.0,0.00021917,2]
[375494678,1753661452427,-400.0,0.00021917,2]
[375494679,1753661452436,-400.0,0.00021917,2]
[375494680,1753661452446,-1062.45,0.00021917,2]
[375494681,1753661452456,-400.0,0.00021917,2]
[375494682,1753661452466,-552.92,0.00021917,2]
[375494683,1753661452476,-1368.46,0.00021917,2]
[375494684,1753661452486,-400.0,0.00021917,2]
[375494685,1753661452496,-400.0,0.00021917,2]
[375494686,1753661452506,-7740.19,0.00021917,2]
[375494687,1753661452516,-1109.4,0.00021917,2]
[375494688,1753661452527,-400.0,0.00021917,2]
[375494689,1753661452541,-11343.65,0.00021917,2]
[375494690,1753661452551,-400.0,0.00021917,2]
[375494691,1753661452560,-400.0,0.00021917,2]
[375494692,1753661452570,-352.27529267,0.00021917,2]
[375494693,1753661452582,-400.0,0.00021917,2]
[375494694,1753661452594,-400.0,0.00021917,2]
[375494695,1753661452604,-10000.0,0.00021917,2]
[375494696,1753661452616,-405.49,0.00021917,2]
[375494697,1753661452627,-400.0,0.00021917,2]
[375494698,1753661452639,-400.0,0.00021917,2]
[375494699,1753661452650,-400.0,0.00021917,2]
[375494700,1753661452661,-400.0,0.00021917,2]
[375494701,1753661452671,-400.0,0.00021917,2]
[375494702,1753661452681,-468.19,0.00021917,2]
[375494703,1753661452692,-497.98,0.00021917,2]
[375494704,1753661452702,-5597.42,0.00021917,2]
[375494705,1753661452713,-714.36,0.00021917,2]
[375494706,1753661452723,-1181.39,0.00021917,2]
[375494707,1753661452733,-1432.38,0.00021917,2]
[375494708,1753661452743,-968.91,0.00021917,2]
[375494709,1753661452753,-863.946432,0.00021917,2]
[375494710,1753661452763,-3482.18,0.00021917,2]
[375494711,1753661452773,-400.0,0.00021917,2]
[375494712,1753661452783,-826.07,0.00021917,2]
[375494713,1753661452793,-400.0,0.00021917,2]
[375494714,1753661452803,-1337.91,0.00021917,2]
[375494715,1753661452813,-2028.35,0.00021917,2]
[375494716,1753661452823,-400.0,0.00021917,2]
[375494717,1753661452833,-874.54,0.00021917,2]
[375494718,1753661452843,-1889.27,0.00021917,2]
[375494719,1753661452853,-400.0,0.00021917,2]
[375494720,1753661452862,-1855.81,0.00021917,2]
[375494721,1753661452873,-500.59,0.00021917,2]
[375494722,1753661452882,-400.0,0.00021917,2]
[375494723,1753661452892,-462.94424771,0.00021917,2]
[375494724,1753661452902,-400.0,0.00021917,2]
[375494725,1753661452912,-2334.04,0.00021917,2]
[375494726,1753661452922,-458.47,0.00021917,2]
[375494727,1753661452932,-214.74095093,0.00021917,2]
[375494728,1753661452941,-151.0,0.00021917,2]
[375494729,1753661452951,-493.56,0.00021917,2]
[375494730,1753661452961,-400.0,0.00021917,2]
[375494731,1753661452971,-589.59,0.00021917,2]
[375494732,1753661452980,-400.0,0.00021917,2]
[375494733,1753661452990,-400.0,0.00021917,2]
[375494734,1753661453000,-496.89,0.00021917,2]
[375494735,1753661453010,-702.39,0.00021917,2]
[375494736,1753661453020,-4998.89,0.00021917,2]
[375494737,1753661453030,-752.72,0.00021917,2]
[375494738,1753661453040,-482.5114327,0.00021917,2]
[375494739,1753661453050,-400.0,0.00021917,2]
[375494740,1753661453060,-1589.33,0.00021917,2]
[375494741,1753661453069,-3449.13,0.00021917,2]
[375494742,1753661453080,-1220.33,0.00021917,2]
[375494743,1753661453089,-1002.5,0.00021917,2]
[375494744,1753661453099,-400.0,0.00021917,2]
[375494745,1753661453108,-1719.24,0.00021917,2]
[375494746,1753661453118,-4047.07,0.00021917,2]
[375494747,1753661453127,-213.78543147,0.00021917,2]
[375494748,1753661453137,-400.0,0.00021917,2]
[375494749,1753661453147,-400.0,0.00021917,2]
[375494750,1753661453156,-1374.06,0.00021917,2]
[375494751,1753661453166,-487.16,0.00021917,2]
[375494752,1753661453176,-1546.27,0.00021917,2]
[375494753,1753661453187,-20992.44,0.00021917,2]
[375494754,1753661453196,-400.0,0.00021917,2]
[375494755,1753661453206,-500.0,0.00021917,2]
[375494756,1753661453215,-400.0,0.00021917,2]
[375494757,1753661453225,-400.0,0.00021917,2]
[375494758,1753661453235,-591.27,0.00021917,2]
[375494759,1753661453245,-1038.6,0.00021917,2]
[375494760,1753661453254,-400.0,0.00021917,2]
[375494761,1753661453264,-400.0,0.00021917,2]
[375494762,1753661453274,-300.94753874,0.00021917,2]
[375494763,1753661453283,-789.38,0.00021917,2]
[375494764,1753661453293,-447.89,0.00021917,2]
[375494765,1753661453303,-400.0,0.00021917,2]
[375494766,1753661453313,-400.0,0.00021917,2]
[375494767,1753661453323,-2220.84,0.00021917,2]
[375494768,1753661453333,-400.0,0.00021917,2]
[375494769,1753661453343,-782.900158,0.00021917,2]
[375494770,1753661453353,-400.0,0.00021917,2]
[375494771,1753661453362,-1638.22,0.00021917,2]
[375494772,1753661453372,-500.0,0.00021917,2]
[375494773,1753661453382,-500.0,0.00021917,2]
[375494774,1753661453705,-500.0,0.00021917,2]
[375494775,1753661453731,-500.0,0.00021917,2]
[375494776,1753661453741,-400.0,0.00021917,2]
[375494777,1753661453751,-1489.6,0.00021917,2]
[375494778,1753661453761,-650.54,0.00021917,2]
[375494779,1753661453770,-7728.1,0.00021917,2]
[375494780,1753661453780,-400.0,0.00021917,2]
[375494781,1753661453790,-493.49,0.00021917,2]
[375494782,1753661453799,-10148.86,0.00021917,2]
[375494783,1753661453811,-1767.31,0.00021917,2]